fUST/lending_fUST_20240830
["ID","MTS","AMOUNT","RATE_DAILY","PERIOD"]
[336684975,1725017444975,-500.0,0.00038356,120]
[336684976,1725017444985,-500.0,0.00038356,120]
[336684977,1725017444995,-500.0,0.00038356,120]
[336684978,1725017445004,-500.0,0.00038356,120]
[336684979,1725017445015,-500.0,0.00038356,120]
[336684980,1725017445026,-503.29758575,0.00038356,120]
[336684981,1725017445037,-500.0,0.00038356,120]
[336684982,1725017445050,-2202.09,0.00038356,120]
[336684983,1725017445059,-501.05861392,0.00038356,120]
[336684984,1725017445069,-500.0,0.00038356,120]
[336684985,1725017445079,-151.0,0.00038356,7]
[336684986,1725017445088,-500.0,0.00038356,120]
[336684987,1725017445098,-500.0,0.00038356,120]
[336684988,1725017445108,-500.0,0.00038356,120]
[336684989,1725017445120,-500.0,0.00038356,120]
[336684990,1725017445131,-500.0,0.00038356,120]
[336684991,1725017445142,-151.0,0.00038356,7]
[336684992,1725017445153,-500.0,0.00038356,120]
[336684993,1725017445163,-983.299984,0.00038356,7]
[336684994,1725017445173,-983.299984,0.00038356,7]
[336684995,1725017445183,-500.0,0.00038356,120]
[336684996,1725017445193,-500.0,0.00038356,120]
[336684997,1725017445203,-983.299984,0.00038356,7]
[336684998,1725017445212,-983.299984,0.00038356,7]
[336684999,1725017445222,-3319.96,0.00038356,120]
[336685000,1725017445233,-500.0,0.00038356,120]
[336685001,1725017445243,-2621.08,0.00038356,120]
[336685002,1725017445253,-500.0,0.00038356,120]
[336685003,1725017445262,-500.0,0.00038356,120]
[336685004,1725017445271,-500.0,0.00038356,20]
[336685005,1725017445282,-500.0,0.00038356,120]
[336685006,1725017445291,-552.97968,0.00038356,120]
[336685007,1725017445300,-284.913045,0.00038356,7]
[336685008,1725017445310,-502.98860748,0.00038356,120]
[336685009,1725017445319,-500.0,0.00038356,120]
[336685010,1725017445329,-500.0,0.00038356,120]
[336685011,1725017445339,-2042.0,0.00038356,120]
[336685012,1725017445348,-230.345981,0.00038356,7]
[336685013,1725017445358,-500.0,0.00038356,120]
[336685014,1725017445367,-500.0,0.00038356,120]
[336685015,1725017445376,-500.0,0.00038356,120]
[336685016,1725017445386,-500.0,0.00038356,120]
[336685017,1725017445396,-500.0,0.00038356,120]
[336685018,1725017445406,-500.0,0.00038356,120]
[336685019,1725017445416,-500.0,0.00038356,120]
[336685020,1725017445426,-284.913045,0.00038356,7]
[336685021,1725017445435,-500.0,0.00038356,120]
[336685022,1725017445445,-151.0,0.00038356,7]
[336685023,1725017445455,-500.0,0.00038356,120]
[336685024,1725017445464,-151.0,0.00038356,7]
[336685025,1725017445474,-502.08021262,0.00038356,120]
[336685026,1725017445484,-232.52979759,0.00038356,120]
[336685027,1725017445494,-500.0,0.00038356,120]
[336685028,1725017445503,-500.0,0.00038356,120]
[336685029,1725017445513,-151.0,0.00038356,7]
[336685030,1725017445524,-500.0,0.00038356,120]
[336685031,1725017445534,-500.0,0.00038356,120]
[336685032,1725017445544,-500.0,0.00038356,120]
[336685033,1725017445556,-699.12,0.00038356,120]
[336685034,1725017445565,-151.0,0.00038356,7]
[336685035,1725017445574,-699.12,0.00038356,120]
[336685036,1725017445583,-151.0,0.00038356,7]
[336685037,1725017445592,-699.12,0.00038356,120]
[336685038,1725017445602,-699.12,0.00038356,120]
[336685039,1725017445612,-699.12,0.00038356,120]
[336685040,1725017445621,-500.0,0.00038356,120]
[336685041,1725017445630,-699.12,0.00038356,120]
[336685042,1725017445640,-699.12,0.00038356,120]
[336685043,1725017445650,-3908.83,0.00038356,120]
[336685044,1725017445659,-699.12,0.00038356,120]
[336685045,1725017445668,-699.12,0.00038356,120]
[336685046,1725017445678,-699.12,0.00038356,120]
[336685047,1725017445687,-699.12,0.00038356,120]
[336685048,1725017445696,-699.12,0.00038356,120]
[336685049,1725017445705,-500.0,0.00038356,120]
[336685050,1725017445716,-699.12,0.00038356,120]
[336685051,1725017445726,-151.0,0.00038356,7]
[336685052,1725017445738,-699.12,0.00038356,120]
[336685053,1725017445750,-500.0,0.00038356,120]
[336685054,1725017445759,-151.0,0.00038356,7]
[336685055,1725017445768,-699.12,0.00038356,120]
[336685056,1725017445777,-699.12,0.00038356,120]
[336685057,1725017445786,-500.0,0.00038356,120]
[336685058,1725017445796,-384.18026537,0.00038356,120]
[336685059,1725017445806,-500.0,0.00038356,120]
[336685060,1725017445816,-500.0,0.00038356,120]
[336685061,1725017445826,-500.0,0.00038356,120]
[336685062,1725017445835,-500.0,0.00038356,120]
[336685063,1725017445844,-500.0,0.00038356,120]
[336685064,1725017445855,-501.36158483,0.00038356,120]
[336685065,1725017445864,-151.0,0.00038356,7]
[336685066,1725017445874,-912.1,0.00038356,120]
[336685067,1725017445884,-151.0,0.00038356,7]
[336685068,1725017445894,-504.09335323,0.00038356,120]
[336685069,1725017445904,-500.0,0.00038356,120]
[336685070,1725017445913,-503.05662563,0.00038356,120]
[336685071,1725017445923,-500.0,0.00038356,120]
[336685072,1725017445932,-500.0,0.00038356,120]
[336685073,1725017445942,-500.0,0.00038356,120]
[336685074,1725017445951,-500.973508,0.00038356,7]
[336685075,1725017445961,-151.0,0.00038356,7]
[336685076,1725017445973,-500.973508,0.00038356,7]
[336685077,1725017445983,-151.0,0.00038356,7]
[336685078,1725017445992,-500.0,0.00038356,120]
[336685079,1725017446001,-500.0,0.00038356,120]
[336685080,1725017446012,-501.70415302,0.00038356,120]
[336685081,1725017446021,-500.0,0.00038356,120]
[336685082,1725017446030,-500.0,0.00038356,120]
[336685083,1725017446040,-500.0,0.00038356,120]
[336685084,1725017446053,-500.973508,0.00038356,7]
[336685085,1725017446063,-500.973508,0.00038356,7]
[336685086,1725017446072,-500.0,0.00038356,120]
[336685087,1725017446082,-500.0,0.00038356,2]
[336685088,1725017446091,-500.0,0.00038356,2]
[336685089,1725017446100,-505.61935754,0.00038356,2]
[336685090,1725017446109,-2679.461448,0.00038356,60]
[336685091,1725017446119,-500.0,0.00038356,120]
[336685092,1725017446128,-501.2243015,0.00038356,120]
[336685093,1725017446140,-500.0,0.00038356,120]
[336685094,1725017446149,-500.0,0.00038356,120]
[336685095,1725017446159,-9882.884482,0.00038356,7]
[336685096,1725017446168,-272.6,0.00038356,2]
[336685097,1725017446178,-500.0,0.00038356,120]
[336685098,1725017446187,-9882.884482,0.00038356,7]
[336685099,1725017446196,-500.0,0.00038356,120]
[336685100,1725017446206,-502.85343993,0.00038356,120]
[336685101,1725017446215,-500.0,0.00038356,120]
[336685102,1725017446225,-1407.46,0.00038356,120]
[336685103,1725017446235,-2824.15,0.00038356,120]
[336685104,1725017446245,-550.69269132,0.00038356,120]
[336685105,1725017446255,-9882.884482,0.00038356,7]
[336685106,1725017446264,-9882.884482,0.00038356,7]
[336685107,1725017446273,-500.0,0.00038356,120]
[336685108,1725017446282,-501.0901858,0.00038356,120]
[336685109,1725017446291,-500.0,0.00038356,120]
[336685110,1725017446300,-500.0,0.00038356,120]
[336685111,1725017446310,-151.0,0.00038356,7]
[336685112,1725017446319,-151.0,0.00038356,7]
[336685113,1725017446329,-500.0,0.00038356,120]
[336685114,1725017446338,-500.0,0.00038356,120]
[336685115,1725017446348,-500.0,0.00038356,120]
[336685116,1725017446357,-331.38,0.00038356,120]
[336685117,1725017446367,-1473.89,0.00038356,120]
[336685118,1725017446376,-500.0,0.00038356,120]
[336685119,1725017446386,-501.82917077,0.00038356,120]
[336685120,1725017446396,-2837.86,0.00038356,120]
[336685121,1725017446405,-501.57173856,0.00038356,120]
[336685122,1725017446414,-151.0,0.00038356,7]
[336685123,1725017446423,-171.787624,0.00038356,7]
[336685124,1725017446432,-504.79736891,0.00038356,120]
[336685125,1725017446441,-500.0,0.00038356,120]
[336685126,1725017446451,-500.0,0.00038356,120]
[336685127,1725017446460,-500.0,0.00038356,120]
[336685128,1725017446469,-500.0,0.00038356,120]
[336685129,1725017446480,-506.17015623,0.00038356,120]
[336685130,1725017446492,-500.0,0.00038356,120]
[336685131,1725017446501,-500.0,0.00038356,120]
[336685132,1725017446511,-153.79285,0.00038356,7]
[336685133,1725017446520,-500.0,0.00038356,120]
[336685134,1725017446531,-151.0,0.00038356,7]
[336685135,1725017446540,-151.0,0.00038356,7]
[336685136,1725017446551,-153.79285,0.00038356,7]
[336685137,1725017446562,-151.0,0.00038356,7]
[336685138,1725017446571,-298.4339,0.00038356,7]
[336685139,1725017446580,-500.0,0.00038356,120]
[336685140,1725017446589,-500.0,0.00038356,120]
[336685142,1725017446599,-153.79285,0.00038356,7]
[336685143,1725017446608,-153.79285,0.00038356,7]
[336685145,1725017446618,-150.112233,0.000384,8]
[336685146,1725017446627,-150.112233,0.000384,9]
[336685147,1725017446639,-150.112233,0.000384,6]
[336685148,1725017446648,-150.112233,0.000384,6]
[336685149,1725017446658,-150.112233,0.000384,8]
[336685150,1725017446667,-150.112233,0.000384,5]
[336685151,1725017446678,-150.112233,0.000384,8]
[336685152,1725017446687,-150.112233,0.000384,8]
[336685153,1725017446697,-150.112233,0.000384,6]
[336685154,1725017446707,-150.112233,0.000384,6]
[336685155,1725017446717,-150.112233,0.000384,6]
[336685156,1725017446726,-150.112233,0.000384,9]
[336685157,1725017446736,-150.112233,0.000384,6]
[336685158,1725017446745,-150.112233,0.000384,10]
[336685159,1725017446756,-151.0,0.00038438,120]
[336685160,1725017446765,-500.0,0.00038454,7]
[336685161,1725017446775,-317.9429019,0.00038474,2]
[336685162,1725017446785,-447.75719027,0.000385,26]
[336685163,1725017446794,-447.75719027,0.000385,26]
[336685164,1725017446803,-447.75719027,0.000385,26]
[336685165,1725017446814,-447.75719027,0.000385,26]
[336685166,1725017446825,-150.112233,0.000385,6]
[336685167,1725017446836,-150.112233,0.000385,7]
[336685168,1725017446846,-150.112233,0.000385,8]
[336685169,1725017446858,-150.112233,0.000385,5]
[336685170,1725017446868,-150.112233,0.000385,7]
[336685171,1725017446877,-150.112233,0.000385,8]
[336685172,1725017446887,-150.112233,0.000385,5]
[336685173,1725017446896,-150.112233,0.000385,9]
[336685174,1725017446906,-150.112233,0.000385,9]
[336685175,1725017446916,-150.112235,0.000385,7]
[336685176,1725017446925,-150.112233,0.000385,7]
[336685177,1725017446934,-150.112233,0.000385,9]
[336685178,1725017446943,-150.112233,0.000385,9]
[336685179,1725017446952,-605.0,0.000385,2]
[336685180,1725017446962,-150.112233,0.000385,9]
[336685181,1725017446975,-150.112233,0.000385,10]
[336685182,1725017446984,-150.112233,0.000385,9]
[336685183,1725017447075,-151.0,0.00038548,120]
[336685184,1725017447085,-500.0,0.00038548,2]
[336685185,1725017447094,-151.0,0.00038548,14]
[336685186,1725017447104,-266.47747,0.00038548,14]
[336685187,1725017447114,-266.47747,0.00038548,14]
[336685188,1725017447123,-800.0,0.00038555,7]
[336685189,1725017447133,-500.0,0.00038573,5]
[336685190,1725017447143,-240.01313908,0.00038573,5]
[336685191,1725017447152,-699.12,0.00038599,120]
[336685192,1725017447162,-699.12,0.00038599,120]
[336685193,1725017447171,-699.12,0.00038599,120]
[336685194,1725017447180,-699.12,0.00038599,120]
[336685195,1725017447190,-699.12,0.00038599,120]
[336685196,1725017447200,-699.12,0.00038599,120]
[336685197,1725017447209,-699.12,0.00038599,120]
[336685198,1725017447218,-699.12938423,0.00038599,120]
[336685199,1725017447227,-15608.22855407,0.000386,30]
[336685200,1725017447252,-56649.80588395,0.000386,30]
[336685201,1725017447264,-707.88382093,0.000386,30]
[336685202,1725017447279,-4161.81700004,0.000386,30]
[336685203,1725017447395,-405.782476,0.00038216,2]
[336685212,1725017657756,169.400957,0.0001863,2]
[336685215,1725017780888,173.482143,0.00014247,2]
[336685247,1725018205065,169.400957,0.0001863,2]
[336685252,1725018220920,10000.0,0.0002,2]
[336685255,1725018245591,254.915,0.0002,2]
[336685258,1725018376489,3486.06508396,0.0002,2]
[336685262,1725018436133,169.819656,0.00014247,2]
[336685264,1725018524111,6513.934,0.00019,2]
[336685335,1725018639922,-169.819656,0.00027884,2]
[336685336,1725018639932,-500.0,0.00028265,2]
[336685337,1725018639943,-151.0,0.0003,120]
[336685338,1725018639953,-151.0,0.0003,120]
[336685339,1725018639965,-500.0,0.00030992,7]
[336685340,1725018639975,-13190.197987,0.0003107,2]
[336685341,1725018639985,-151.0,0.0003126,120]
[336685342,1725018639995,-441.88302,0.00031617,2]
[336685343,1725018640004,-150.0,0.00032023,14]
[336685344,1725018640015,-150.0,0.00032023,14]
[336685345,1725018640025,-200.0,0.00032023,14]
[336685346,1725018640037,-151.0,0.00032411,120]
[336685347,1725018640049,-151.0,0.00032521,120]
[336685348,1725018640059,-300.0,0.00032879,2]
[336685349,1725018640069,-300.0,0.00032879,2]
[336685350,1725018640079,-193.726945,0.00033068,2]
[336685351,1725018640089,-151.0,0.00033781,120]
[336685352,1725018640098,-151.0,0.00034822,120]
[336685353,1725018640108,-151.0,0.00035041,120]
[336685354,1725018640118,-10000.0,0.000355,20]
[336685355,1725018640128,-151.0,0.00036301,120]
[336685356,1725018640138,-10000.0,0.000365,25]
[336685357,1725018640150,-151.0,0.00037233,120]
[336685358,1725018640161,-317.9429019,0.00037491,2]
[336685359,1725018640171,-10000.0,0.000375,35]
[336685360,1725018640182,-151.0,0.00037562,120]
[336685361,1725018640193,-658.29268005,0.000379,30]
[336685362,1725018640205,-13092.01,0.00038225,3]
[336685363,1725018640215,-326.09229503,0.00038234,15]
[336685364,1725018640226,-469.54318874,0.00038245,2]
[336685365,1725018640236,-75180.8928937,0.00038245,4]
[336685366,1725018640246,-75180.8928937,0.00038246,4]
[336685367,1725018640256,-469.54318873,0.00038248,2]
[336685368,1725018640266,-469.54318873,0.00038251,2]
[336685369,1725018640276,-469.54318873,0.00038253,2]
[336685370,1725018640286,-36334.1800089,0.00038256,5]
[336685371,1725018640297,-469.54318873,0.00038256,2]
[336685372,1725018640307,-1746.9739134,0.00038256,2]
[336685373,1725018640319,-447.75719027,0.000383,25]
[336685374,1725018640334,-447.75719027,0.000383,25]
[336685375,1725018640344,-447.75719027,0.000383,25]
[336685376,1725018640354,-447.75719027,0.000383,25]
[336685377,1725018640366,-150.112233,0.000383,8]
[336685378,1725018640376,-150.112233,0.000383,9]
[336685379,1725018640386,-150.112233,0.000383,5]
[336685380,1725018640395,-151.0,0.00038345,2]
[336685381,1725018640405,-151.0,0.00038345,2]
[336685382,1725018640416,-151.0,0.00038345,2]
[336685383,1725018640427,-151.0,0.00038345,2]
[336685384,1725018640438,-151.0,0.00038345,2]
[336685385,1725018640449,-151.0,0.00038345,2]
[336685386,1725018640459,-151.0,0.00038345,2]
[336685387,1725018640469,-151.0,0.00038345,2]
[336685388,1725018640478,-151.0,0.00038345,2]
[336685389,1725018640488,-151.0,0.00038345,2]
[336685390,1725018640497,-500.0,0.00038345,15]
[336685391,1725018640508,-265.55630687,0.00038345,15]
[336685392,1725018640518,-500.0,0.00038345,15]
[336685393,1725018640528,-239.27836047,0.00038345,15]
[336685394,1725018640538,-500.0,0.00038345,15]
[336685395,1725018640548,-500.0,0.00038345,15]
[336685396,1725018640558,-500.0,0.00038345,15]
[336685397,1725018640568,-500.0,0.00038345,15]
[336685398,1725018640577,-625.96194699,0.00038345,15]
[336685399,1725018640586,-500.0,0.00038345,15]
[336685400,1725018640597,-500.0,0.00038345,15]
[336685401,1725018640607,-500.0,0.00038345,15]
[336685403,1725018640617,-500.0,0.00038345,15]
[336685404,1725018640626,-185.29230774,0.00038345,15]
[336685411,1725018642822,-5902.55190845,0.00038236,3]
[336685412,1725018642834,-11381.11560777,0.00038236,3]
[336685423,1725018643565,-0.40630006,0.00038236,3]
[336685434,1725018736017,169.400957,0.0001863,2]
[336685476,1725019539140,169.819656,0.00014247,2]
[336685552,1725019838194,-199.59,0.00025,10]
[336685553,1725019838204,-169.819656,0.00031781,2]
[336685554,1725019838214,-150.0,0.00032016,14]
[336685555,1725019838223,-150.0,0.00032016,14]
[336685556,1725019838233,-200.0,0.00032016,14]
[336685557,1725019838243,-376.6715649,0.00033508,2]
[336685558,1725019838253,-162.11471,0.00033778,2]
[336685559,1725019838263,-200.567433,0.00033839,2]
[336685560,1725019838272,-800.0,0.0003441,7]
[336685561,1725019838281,-162.11471,0.00034658,2]
[336685562,1725019838290,-162.11471,0.00035538,2]
[336685563,1725019838300,-1000.0,0.00038166,2]
[336685564,1725019838309,-32868.0,0.00038246,5]
[336685565,1725019838319,-2000.0,0.00038246,2]
[336685566,1725019838328,-1000.0,0.00038255,2]
[336685567,1725019838338,-1766.38473468,0.00038256,2]
[336685568,1725019838348,-150.112237,0.000383,7]
[336685569,1725019838358,-150.112233,0.000383,7]
[336685570,1725019838367,-150.112233,0.000383,6]
[336685571,1725019838377,-150.112233,0.000383,6]
[336685572,1725019838386,-150.112233,0.000383,8]
[336685574,1725019838395,-150.112233,0.000383,7]
[336685575,1725019838404,-150.112233,0.000383,7]
[336685576,1725019838420,-150.112233,0.000383,5]
[336685577,1725019838431,-150.112233,0.000383,10]
[336685578,1725019838442,-150.112233,0.000383,9]
[336685579,1725019838451,-150.112233,0.000383,9]
[336685580,1725019838460,-150.112233,0.000383,6]
[336685581,1725019838470,-150.112233,0.000383,10]
[336685582,1725019838479,-150.112233,0.000383,9]
[336685583,1725019838488,-150.112233,0.000383,9]
[336685584,1725019838498,-71706.5893063,0.00038326,4]
[336685585,1725019838508,-155.03,0.00038345,2]
[336685586,1725019838519,-155.03,0.00038345,2]
[336685587,1725019838529,-155.03,0.00038345,2]
[336685588,1725019838539,-155.03,0.00038345,2]
[336685589,1725019838549,-500.0,0.00038345,15]
[336685590,1725019838560,-185.88941481,0.00038345,15]
[336685591,1725019838570,-517.49485233,0.00038345,15]
[336685592,1725019838580,-500.0,0.00038345,15]
[336685593,1725019838591,-500.0,0.00038345,15]
[336685594,1725019838600,-500.0,0.00038345,15]
[336685595,1725019838610,-500.0,0.00038345,15]
[336685596,1725019838620,-500.0,0.00038345,15]
[336685597,1725019838629,-374.19616867,0.00038345,15]
[336685598,1725019838639,-500.0,0.00038345,15]
[336685599,1725019838649,-500.0,0.00038345,15]
[336685600,1725019838658,-500.0,0.00038345,15]
[336685601,1725019838669,-500.0,0.00038345,15]
[336685602,1725019838678,-500.0,0.00038345,15]
[336685603,1725019838689,-500.0,0.00038345,15]
[336685604,1725019838700,-500.0,0.00038345,15]
[336685605,1725019838710,-500.0,0.00038345,15]
[336685606,1725019838720,-450.0,0.00038345,15]
[336685607,1725019838730,-500.0,0.00038345,15]
[336685608,1725019838740,-271.72460976,0.00038345,2]
[336685609,1725019838752,-214.46081529,0.00038345,5]
[336685610,1725019838762,-246971.99946751,0.00038346,4]
[336685611,1725019838779,-343.65528146,0.00038346,4]
[336685626,1725019840097,-39510.70247603,0.00038346,4]
[336685627,1725019840107,-160.0,0.00038355,10]
[336685628,1725019840116,-224.37455676,0.00038356,5]
[336685629,1725019840126,-351.993062,0.00038356,7]
[336685630,1725019840136,-351.993062,0.00038356,7]
[336685631,1725019840146,-351.993062,0.00038356,7]
[336685632,1725019840158,-351.993062,0.00038356,7]
[336685633,1725019840167,-500.0,0.00038356,120]
[336685634,1725019840177,-603.6544077,0.00038356,120]
[336685635,1725019840187,-500.0,0.00038356,120]
[336685636,1725019840198,-502.6677539,0.00038356,30]
[336685637,1725019840207,-151.0,0.00038356,7]
[336685638,1725019840217,-151.0,0.00038356,7]
[336685639,1725019840226,-151.0,0.00038356,7]
[336685640,1725019840235,-151.0,0.00038356,7]
[336685641,1725019840245,-502.23709377,0.00038356,120]
[336685643,1725019840258,-151.0,0.00038356,7]
[336685644,1725019840268,-151.0,0.00038356,7]
[336685645,1725019840278,-151.0,0.00038356,7]
[336685646,1725019840287,-151.389956,0.00038356,7]
[336685647,1725019840296,-151.0,0.00038356,7]
[336685648,1725019840306,-151.0,0.00038356,7]
[336685649,1725019840316,-151.0,0.00038356,7]
[336685650,1725019840325,-184.801351,0.00038356,7]
[336685651,1725019840335,-184.801351,0.00038356,7]
[336685652,1725019840347,-184.801351,0.00038356,7]
[336685653,1725019840356,-184.801351,0.00038356,7]
[336685654,1725019840366,-184.801351,0.00038356,7]
[336685655,1725019840376,-184.801351,0.00038356,7]
[336685656,1725019840385,-184.801351,0.00038356,7]
[336685657,1725019840395,-184.801351,0.00038356,7]
[336685658,1725019840404,-500.0,0.00038356,120]
[336685659,1725019840414,-151.0,0.00038356,7]
[336685660,1725019840423,-151.0,0.00038356,7]
[336685661,1725019840433,-151.0,0.00038356,7]
[336685662,1725019840442,-337.22,0.00038356,120]
[336685663,1725019840452,-151.0,0.00038356,7]
[336685664,1725019840461,-151.0,0.00038356,7]
[336685665,1725019840471,-151.0,0.00038356,7]
[336685666,1725019840480,-500.0,0.00038356,120]
[336685667,1725019840490,-500.0,0.00038356,120]
[336685668,1725019840499,-500.0,0.00038356,120]
[336685669,1725019840509,-500.0,0.00038356,120]
[336685670,1725019840518,-500.0,0.00038356,120]
[336685671,1725019840528,-500.0,0.00038356,120]
[336685672,1725019840538,-500.0,0.00038356,120]
[336685673,1725019840547,-500.0,0.00038356,7]
[336685674,1725019840557,-186.73919535,0.00038356,120]
[336685675,1725019840566,-500.0,0.00038356,120]
[336685676,1725019840576,-151.0,0.00038356,7]
[336685677,1725019840586,-151.0,0.00038356,7]
[336685678,1725019840598,-151.0,0.00038356,7]
[336685679,1725019840608,-500.0,0.00038356,120]
[336685680,1725019840618,-501.05464364,0.00038356,120]
[336685681,1725019840628,-500.0,0.00038356,120]
[336685682,1725019840638,-500.0,0.00038356,120]
[336685683,1725019840647,-501.45473404,0.00038356,120]
[336685684,1725019840657,-500.0,0.00038356,120]
[336685685,1725019840667,-500.0,0.00038356,120]
[336685686,1725019840677,-151.0,0.00038356,7]
[336685687,1725019840687,-158.926326,0.00038356,7]
[336685688,1725019840701,-151.0,0.00038356,7]
[336685689,1725019840711,-151.0,0.00038356,7]
[336685690,1725019840720,-151.0,0.00038356,7]
[336685691,1725019840730,-151.0,0.00038356,7]
[336685692,1725019840741,-500.0,0.00038356,120]
[336685693,1725019840750,-500.0,0.00038356,120]
[336685694,1725019840760,-151.0,0.00038356,7]
[336685695,1725019840770,-151.0,0.00038356,7]
[336685696,1725019840779,-151.0,0.00038356,7]
[336685697,1725019840789,-151.0,0.00038356,7]
[336685698,1725019840798,-151.0,0.00038356,7]
[336685699,1725019840808,-151.0,0.00038356,7]
[336685700,1725019840817,-504.05827255,0.00038356,120]
[336685701,1725019840826,-151.0,0.00038356,7]
[336685702,1725019840835,-151.0,0.00038356,7]
[336685703,1725019840847,-151.0,0.00038356,7]
[336685704,1725019840857,-151.0,0.00038356,7]
[336685705,1725019840866,-151.0,0.00038356,7]
[336685706,1725019840875,-151.0,0.00038356,7]
[336685707,1725019840884,-151.0,0.00038356,7]
[336685708,1725019840991,-151.0,0.00038356,7]
[336685709,1725019841000,-151.0,0.00038356,7]
[336685710,1725019841010,-151.0,0.00038356,7]
[336685711,1725019841019,-151.0,0.00038356,7]
[336685712,1725019841029,-151.0,0.00038356,7]
[336685713,1725019841038,-151.0,0.00038356,7]
[336685714,1725019841047,-151.0,0.00038356,7]
[336685715,1725019841057,-500.0,0.00038356,120]
[336685716,1725019841066,-266.422145,0.00038356,7]
[336685717,1725019841075,-500.0,0.00038356,120]
[336685718,1725019841084,-502.63280003,0.00038356,120]
[336685719,1725019841096,-500.0,0.00038356,120]
[336685720,1725019841105,-500.0,0.00038356,120]
[336685721,1725019841114,-500.0,0.00038356,120]
[336685722,1725019841131,-500.0,0.00038356,120]
[336685723,1725019841145,-500.0,0.00038356,120]
[336685724,1725019841155,-503.29758575,0.00038356,120]
[336685725,1725019841165,-500.0,0.00038356,120]
[336685726,1725019841175,-500.0,0.00038356,7]
[336685727,1725019841185,-500.0,0.00038356,120]
[336685728,1725019841194,-501.56465971,0.00038356,120]
[336685729,1725019841204,-500.0,0.00038356,120]
[336685730,1725019841213,-500.0,0.00038356,120]
[336685731,1725019841223,-500.0,0.00038356,120]
[336685732,1725019841233,-500.0,0.00038356,120]
[336685733,1725019841243,-500.0,0.00038356,120]
[336685734,1725019841252,-500.0,0.00038356,120]
[336685735,1725019841262,-500.0,0.00038356,120]
[336685736,1725019841272,-500.0,0.00038356,120]
[336685737,1725019841282,-501.05861392,0.00038356,120]
[336685738,1725019841291,-384.18026537,0.00038356,120]
[336685739,1725019841302,-500.0,0.00038356,120]
[336685740,1725019841311,-500.0,0.00038356,120]
[336685741,1725019841321,-500.0,0.00038356,120]
[336685742,1725019841331,-500.0,0.00038356,20]
[336685743,1725019841341,-552.97968,0.00038356,120]
[336685744,1725019841351,-217.77143254,0.00038356,120]
[336685745,1725019841374,-282.22856746,0.00038356,120]
[336685746,1725019841384,-321.75622118,0.00038356,120]
[336685812,1725019846305,-598.30034209,0.00038336,3]
[336685835,1725020103115,178.125,0.00014247,2]
[336685841,1725020230114,160.930908,0.0001863,2]
[336685871,1725020592603,169.819656,0.00014247,2]
[336685875,1725020704770,160.930908,0.0001863,2]
[336685877,1725020782559,999.97,0.00025,120]
[336685933,1725021032179,-9534.74312605,0.0002509,2]
[336685953,1725021038269,-942.36090731,0.0002509,2]
[336685956,1725021038323,-35515.34058118,0.0002509,2]
[336685957,1725021038333,-500.0,0.00026842,2]
[336685958,1725021038342,-200.567433,0.00027182,2]
[336685959,1725021038352,-500.0,0.00027964,2]